Cogmind - Beta 10.2 @@@ ROGUE MODE // 2022.01.19 @ 21:58:45 // AFD2019/Pay2Buy Player: FontPeg Result: Destroyed by D-53 Grenadier with Mini Grenade Launcher Performance ------------- Evolutions (0) 0 Regions Visited (2) 400 Robots Destroyed (15) 75 Value Destroyed (433) 433 Prototype IDs (0) 0 Alien Tech Used (0) 0 Bonus (0) 0 TOTAL SCORE: 908 Bonus ------- None Cogmind --------- Core Integrity 0/250 Matter 119/500 Energy 92/100 System Corruption 0% Temperature Cool (0) Movement Core (200) Ox3 Location -10/Mines Parts ------- > --- POWER (1) -------- (None) > --- PROPULSION (2) --- (None) > --- UTILITY (2) ------ High-capacity Matter Pod Improved Trap Extractor > --- WEAPON (2) ------- Great Axe > --- INVENTORY (10) --- Structural Scanner Improved Field Recycling Unit (0) Peak State ------------ > --- POWER ------------ Ion Engine > --- PROPULSION ------- Light Treads > --- UTILITY ---------- High-capacity Matter Pod Improved Trap Extractor > --- WEAPON ----------- Mini Grenade Launcher Great Axe > --- INVENTORY -------- Structural Scanner Improved Field Recycling Unit [Rating: 13] Favorites ----------- Power Ion Engine Engine Ion Engine Propulsion Light Treads Treads Light Treads Utility High-capacity Matter Pod Device Recoil Stabilizer Storage High-capacity Matter Pod Weapon Great Axe Launcher Grenade Launcher Slashing Weapon Great Axe Build | -11 -10 -10 ------- Run | Scr Mat Min Slots Evolved . | . . . Power . | . . . Propulsion . | . . . Utility . | . . . Weapon . | . . . Parts Attached 3 | . 2 1 Power . | . . . Engine . | . . . Core . | . . . Reactor . | . . . Propulsion . | . . . Treads . | . . . Leg . | . . . Wheel . | . . . Hover . | . . . Flight . | . . . Utility 2 | . 1 1 Device 2 | . 1 1 Storage . | . . . Processor . | . . . Hackware . | . . . Protection . | . . . Artifact . | . . . Weapon 1 | . 1 . Energy Gun . | . . . Energy Cannon . | . . . Ballistic Gun . | . . . Ballistic Cannon . | . . . Launcher 1 | . 1 . Special Weapon . | . . . Impact Weapon . | . . . Slashing Weapon . | . . . Piercing Weapon . | . . . Special Melee Weapon . | . . . Unidentified Prototypes . | . . . Parts Lost 6 | . 1 5 Power 1 | . . 1 Propulsion 1 | . . 1 Utility 2 | . 1 1 Weapon 2 | . . 2 Highest Loss Streak 3 | . 1 3 Average Slot Usage (%) 77 | . 77 78 Engine 13 | . 13 13 Treads 13 | . 13 14 Device 9 | . 10 7 Storage 13 | . 13 14 Launcher 13 | . 12 14 Slashing Weapon 13 | . 13 14 Naked Turns 14 | . 14 . Heaviest Build 18 | . 18 18 Greatest Support 20 | 3 20 20 Greatest Overweight (x) 3 | . . 3 Average Overweight (x) . | . . . Largest Inventory Capacity 10 | 10 10 10 Average Capacity 10 | 10 10 10 Most Carried 3 | . 3 3 Average Carried 1 | . 1 2 Final Capacity 10 | 10 10 10 Final Carried 2 | . 1 2 Class Distribution -------------------- 100% | Mutant Dominant Class ---------------- Mutant | -10/Materials Mutant | -10/Mines Resources | -11 -10 -10 ----------- Run | Scr Mat Min Matter Collected 195 | . 121 74 Remotely . | . . . Salvage Created 287 | . 170 117 Parts . | . . . Haulers Intercepted . | . . . Recyclers Shooed . | . . . Parts Field Recycled . | . . . Retrieved Matter . | . . . Parts Self-Destructed . | . . . Prevented . | . . . Kills | -11 -10 -10 ------- Run | Scr Mat Min Combat Hostiles Destroyed 12 | . 5 7 Melee 1 | . 1 . AOE 11 | . 4 7 Classes Destroyed 5 | . 4 1 Builder 1 | . 1 . Tunneler 1 | . 1 . Watcher 1 | . 1 . Swarmer 3 | . . 3 Grunt 9 | . 5 4 Best Kill Streak 4 | . 4 3 Combat Bots Only 3 | . 2 3 Max Kills in Single Turn 2 | . 1 2 Gunslinging . | . . . Exploded 2 | . 1 2 Melee 1 | . 1 . Uniques/NPCs Destroyed . | . . . Combat | -11 -10 -10 -------- Run | Scr Mat Min Damage Taken 666 | . 182 484 Core 254 | . 42 212 Absorbed by Shields . | . . . Core Remaining (%) 100 | 100 . . Volleys Fired 18 | . 8 10 Largest 1 | . 1 1 Hottest 30 | . 30 30 Shots Fired 18 | . 8 10 Gun . | . . . Cannon . | . . . Launcher 18 | . 8 10 Special . | . . . Kinetic . | . . . Thermal . | . . . Explosive 18 | . 8 10 Electromagnetic . | . . . Robot Hit Streak 5 | . 5 2 Robot Miss Streak 1 | . 1 1 Penetration Max . | . . . Secondary Targets . | . . . Shots Hit Robots 12 | . 8 4 Core Hits 23 | . 11 12 Critical Hits . | . . . Critical Kills . | . . . Critical Parts Destroyed . | . . . Melee Attacks 4 | . 4 . Impact . | . . . Slashing 4 | . 4 . Piercing . | . . . Sneak Attacks . | . . . Combat Hostiles . | . . . Follow-up Attacks . | . . . Damage Inflicted 1228 | . 523 705 Guns . | . . . Cannons . | . . . Explosions 1100 | . 395 705 Melee 128 | . 128 . Ramming . | . . . Kinetic . | . . . Thermal . | . . . Explosive 1100 | . 395 705 Electromagnetic . | . . . Impact . | . . . Slashing 128 | . 128 . Piercing . | . . . Highest Corruption . | . . . Average Corruption . | . . . Corruption Purged . | . . . Overload Shots . | . . . Overflow Damage 7 | . . 7 Projectiles . | . . . Explosions 7 | . . 7 Melee . | . . . Knockbacks . | . . . Impact . | . . . Kinetic . | . . . Secondary . | . . . Self-Inflicted Damage 93 | . 43 50 Shots 4 | . 2 2 Rammed . | . . . Targets Rammed . | . . . Kicked . | . . . Crushed . | . . . Highest Temperature 10 | . 1 10 Average Temperature 4 | . 1 6 Received Heat Transfer 159 | . 78 81 Siege Activations . | . . . Robots Corrupted . | . . . Combat Hostiles . | . . . Parts Fried . | . . . Impact Corruptions . | . . . Robots Melted . | . . . Combat Hostiles . | . . . Parts Melted . | . . . Heat Transferred . | . . . Parts Sabotaged . | . . . Parts Stolen . | . . . Parts Stripped . | . . . Power Chain Reactions . | . . . Missiles Intercepted . | . . . Alert | -11 -10 -10 ------- Run | Scr Mat Min Peak Influence 271 | . 196 271 Initial 76 | . . 76 Average 127 | . 89 180 Maximum Alert Level 1 | . . 1 Low Security (%) 88 | 100 100 73 Level 1 11 | . . 26 Level 2 . | . . . Level 3 . | . . . Level 4 . | . . . Level 5 . | . . . High Security . | . . . Max Security . | . . . Squads Dispatched 3 | . 3 . Investigation . | . . . Extermination . | . . . Reinforcement 3 | . 3 . Assault . | . . . Garrison . | . . . Intercept . | . . . Construction Impeded . | . . . Haulers Reinforced . | . . . Stealth | -11 -10 -10 --------- Run | Scr Mat Min Distress Signals . | . . . Communications Jammed . | . . . Distress Signals . | . . . Times Spotted 27 | . 13 14 Peak Tracking Total 11 | . 3 11 Tactical Retreats 1 | . 1 . Traps | -11 -10 -10 ------- Run | Scr Mat Min Traps Triggered . | . . . Indirectly . | . . . Trap Hack Attempts . | . . . Triggered . | . . . Disarmed . | . . . Reprogrammed . | . . . Reused . | . . . Traps Extracted . | . . . Installed . | . . . Triggered . | . . . Machines | -11 -10 -10 ---------- Run | Scr Mat Min Machines Disabled 3 | . 1 2 Max in Single Turn 1 | . 1 1 Machines Sabotaged . | . . . Garrisons Compromised . | . . . Overloaded Fab Kills . | . . . Fab Network Shutdowns . | . . . Hacking | -11 -10 -10 --------- Run | Scr Mat Min Machines Accessed 4 | . 3 1 Terminals 3 | . 3 . Fabricators . | . . . Repair Stations . | . . . Recycling Units . | . . . Scanalyzers . | . . . Garrison Access . | . . . Total Hacks 11 | . 10 1 Successful 4 | . 3 1 Failed 7 | . 7 . Catastrophic 4 | . 4 . Database Lockouts . | . . . Manual 9 | . 9 . Terminals 10 | . 10 . Fabricators . | . . . Repair Stations . | . . . Recycling Units . | . . . Scanalyzers . | . . . Garrison Access . | . . . Terminal Hacks 2 | . 1 1 Open Door 1 | . . 1 Terminal Index 1 | . 1 . Fabricator Hacks . | . . . Repair Station Hacks . | . . . Recycling Unit Hacks . | . . . Scanalyzer . | . . . Garrison Access Hacks . | . . . Unauthorized Hacks 2 | . 2 . Terminals 2 | . 2 . Botnet 2 | . 2 . Fabricators . | . . . Repair Stations . | . . . Recycling Units . | . . . Scanalyzers . | . . . Garrison Access . | . . . Data Cores Recovered . | . . . Used . | . . . Hacking Detections 3 | . 3 . Full Trace Events 1 | . 1 . Feedback Events . | . . . Feedback Blocked . | . . . Robot Schematics Acquired . | . . . Robots Built . | . . . Matter . | . . . Time . | . . . Total Robot Build Rating . | . . . Part Schematics Acquired . | . . . Parts Built . | . . . Matter . | . . . Time . | . . . Total Part Build Rating . | . . . Parts Repaired . | . . . Time . | . . . Parts Recycled . | . . . Recycled Matter . | . . . Retrieved Matter . | . . . Retrieved Components . | . . . Parts Scanalyzed . | . . . Part Schematics Acquired . | . . . Parts Damaged . | . . . Bothacking | -11 -10 -10 ------------ Run | Scr Mat Min Used RIF Installer . | . . . Robots Hacked . | . . . Non-combat . | . . . Combat . | . . . Robot Hacks Applied . | . . . Relay Couplers Released . | . . . Robots Rewired . | . . . Allies Hacked . | . . . Hacks Repelled . | . . . Allies | -11 -10 -10 -------- Run | Scr Mat Min Total Allies . | . . . Largest Group . | . . . Highest-Rated Group . | . . . Highest-Rated Ally . | . . . Total Orders . | . . . Ally Attacks . | . . . Total Damage . | . . . Kills . | . . . Allies Corrupted . | . . . Allies Melted . | . . . Intel | -11 -10 -10 ------- Run | Scr Mat Min Robot Analysis Total . | . . . Derelict Logs Recovered . | . . . Drone Launches . | . . . Drone Recoveries . | . . . Exploration | -11 -10 -10 ------------- Run | Scr Mat Min Turns Passed 463 | 10 249 204 Spaces Moved 286 | 19 154 113 Core 47 | 19 27 1 Treads 239 | . 127 112 Legs . | . . . Wheels . | . . . Hover . | . . . Flight . | . . . Fastest Speed 50 | 50 50 160 Average Speed 142 | 50 140 160 Slowest Speed 200 | 50 160 200 Overloaded Moves . | . . . Propulsion Burnouts . | . . . Robots Hopped . | . . . Cave-ins Triggered . | . . . Exploration Rate (%) 20 | 4 32 24 Regions Visited 2 Branch Regions 1 Pre-discovered Areas . | . . . Known Exits Taken . | . . . Unknown Exits Taken 2 | 1 1 . Scrap Searched . | . . . Spaces Dug . | . . . Terrain Destroyed 140 | . 40 100 Melee . | . . . Projectile . | . . . AOE 140 | . 40 100 Terrain Rammed . | . . . Walls Destroyed . | . . . Machines Disabled . | . . . Actions | -11 -10 -10 --------- Run | Scr Mat Min Total 315 | 18 172 125 Wait 4 | . 4 . Move 284 | 18 153 113 Hop . | . . . Pick Up 1 | . . 1 Fast Attach . | . . . Attach 3 | . 2 1 Detach 1 | . 1 . Swap . | . . . Drop . | . . . Fire 18 | . 8 10 Melee 4 | . 4 . Ram . | . . . Kick . | . . . Crush . | . . . Escape Stasis . | . . . Rewire . | . . . Trap . | . . . Miscellaneous . | . . . Route ------- -11/Scrapyard -10/Materials -10/Mines History --------- Turn | Location | Event 4 | -11/Scrapyard | Discovered new exit (range 14) 11 | -11/Scrapyard | Entered Materials 227 | -10/Materials | Discovered new exit (range 8) 260 | -10/Materials | Entered Mines 308 | -10/Mines | Build established: Mutant 327 | -10/Mines | Met a Derelict who couldn't figure out how to use a Trap Extractor 413 | -10/Mines | Core integrity fell below 50% 445 | -10/Mines | Assembled infested the area 463 | -10/Mines | Core integrity fell below 20% 464 | -10/Mines | Destroyed by D-53 Grenadier with Mini Grenade Launcher Last Messages --------------- 00427_ U-05 Engineer builds a Wall. 00429_ The unstable cave ceiling collapses. 00431_ U-05 Engineer lays Concrete. 00436_ U-05 Engineer builds a Wall. 00439_ U-05 Engineer lays Concrete. 00441_ U-05 Engineer builds a Wall. 00445_ ALERT: Infestation in the mines, dispatching Demolisher response squad. 00445_ U-05 Engineer builds a Wall. 00459_ C-30 ARC bursts open, deploying its payload. 00459_ D-53 Grenadier unfolds itself. 00459_ Ion Engine destroyed. 00460_ A derelict emerges from the shadows: "Quick, help me dispose of these Unaware!" 00460_ S-10 Pest: "SECOND INTRUDER APPROACHING. ELIMINATE." 00460_ Lgt. Treads destroyed. 00462_ as-88531 powers down. 00462_ as-03783 powers down. 00462_ as-61927 destroyed. 00464_ Mni. Grenade Launcher destroyed. Map ----- +----------------------------------------------------+ | ?????????????????????????????????????????????????? | | ?????????????????????????????????????????????????? | | ?????????????????????????????????????????????????? | | ?????????????????????????????????????????????????? | | ?????????????????????????????????????????????????? | | ?????????????????????????????????????????????????? | | ?????????????????????????????????????????????????? | | ?????????????????????????????????????????????????? | | ?????????????????????????????????????????????????? | | ?????????????????????????? ?????????????????????? | | ?????????????????????????? #???????????????????? | | ?????????????????????????? ??????????????????? | | ?????????????????????????? ??????????????????? | | ?????????????????????????? #??????????????????? | | ?????????????????????????# #??????????????????? | | ?????????????????????#### #??????????????????? | | ?????????????????????# ???????????????????? | | ?????????????????????? ???????????????????? | | ?????????????????????? % s ????????????????????? | | ???????????#??????????# dds #????????????????????? | | ??????????? ??????????# ##???????????????????? | | ???######?# #???????### #???????????????????? | | ??##""""### #??????## #???????????????????? | | ###" "## #??????# #???????????????????? | | ##" ^ "## #??????## # #?????????? | | ## ### #??????# @ #?????????? | | # # #??????# #?????????? | | # #??????# g ##?????????? | | ## ######### # ######??????????? | | aa## ##???????????????? | | # #### ##### #?###????????????????? | | # #??# #????????? #????????????????????? | | ## ##??# ?????????a#????????????????????? | | ?## # ####??? ???????? #????????????????????? | | ??### ###?????? ????????#????????????????????? | | ????# #???????? ?????????????????????????????? | | #???# ######??? ## ????????????????????????????? | | #???# #??? ##? ???????????????????????????? | | #???###### #???##???? ??????????????????????????? | | ##???????# #????????? ??????????????????????????? | | ###???### #####?????? ?????????????????????????? | | ##### #???????##????????????????????????? | | ## " #?????????????????????????????????? | | ## " ##????????????????????????????????? | | ## #????????????????????????????????? | | # #????????????????????????????????? | | ## #????????????????????????????????? | | ## ## # # #????????????????????????????????? | | ??##### #????????????????????????????????? | | ??????#### ###????????????????????????????????? | +----------------------------------------------------+ Best States ------------- Heat Dissipation 25 Energy Generation 10 Energy Capacity 250 Matter Stores 141 Matter Capacity 500 Sight Range 16 Terrain Scan Density 10 Evasion (%) 50 Recoil Reduction 3 Item Schematics ----------------- None Robot Schematics ------------------ None Fabricated ------------ Nothing Alien Tech Used ----------------- None Achievements -------------- None Challenges ------------ None Cogshop Purchases (10) ------------------------ Hcp. Matter Pod (599) Lgt. Treads (749) Great Axe (Loot Box) Grenade Launcher (Loot Box) Recoil Stabilizer (Loot Box) Integration Mediator (Loot Box) Imp. Field Recycling Unit (Loot Box) Ion Engine (599) Mni. Grenade Launcher (1031) Structural Scanner (Loot Box) Game ------ Seed CoolantScanFacilitator Manual? 0 Play Time 00:07:21 Cumulative 111.2 hours Start 2022.01.19 @ 21:52:58 End 2022.01.19 @ 21:58:45 Sessions 1 Manual Loads 0 Difficulty Rogue Special Mode AFD2019/Pay2Buy Game No. 160 Rogue 160 Adventurer 0 Explorer 0 Win Type - Total 2 Types 1/0/1/0/0/0/0/0/0 Lore% 51 Gallery% 61 Achievement% 48 Wizard Run 0 Options --------- ASCII 0 Keyboard 0 Movement Mouse Keybinds 0 Fullscreen 2 Font 18/X11 Map View 76x50 Tactical HUD 1 Map Filters NONE Filters NONE Steam 1 RUN: 433b18f1-e96e-47cc-98d0-9cbca21c94cc